fUST/lending_fUST_20250624
["ID","MTS","AMOUNT","RATE_DAILY","PERIOD"]
[367391891,1750780240230,-500.0,0.00017053,2]
[367391893,1750780240239,-500.0,0.00017053,2]
[367391895,1750780240248,-500.0,0.00017053,2]
[367391897,1750780240257,-500.0,0.00017053,2]
[367391899,1750780240266,-500.0,0.00017053,2]
[367391901,1750780240275,-500.0,0.00017053,2]
[367391903,1750780240284,-500.0,0.00017053,2]
[367391905,1750780240293,-500.0,0.00017053,2]
[367391907,1750780240302,-500.0,0.00017053,2]
[367391909,1750780240311,-500.0,0.00017053,2]
[367391912,1750780240320,-500.0,0.00017053,2]
[367391914,1750780240330,-277.54371579,0.00017053,2]
[367391916,1750780240339,-343.39293159,0.00017053,2]
[367391918,1750780240348,-500.0,0.00017053,2]
[367391920,1750780240357,-500.0,0.00017053,2]
[367391923,1750780240366,-500.0,0.00017053,2]
[367391926,1750780240375,-500.0,0.00017053,2]
[367391928,1750780240384,-500.0,0.00017053,2]
[367391930,1750780240394,-500.0,0.00017053,2]
[367391932,1750780240403,-563.51656645,0.00017053,2]
[367391934,1750780240412,-500.0,0.00017053,2]
[367391936,1750780240421,-500.0,0.00017053,2]
[367391938,1750780240431,-500.0,0.00017053,2]
[367391940,1750780240440,-500.0,0.00017053,2]
[367391942,1750780240449,-500.0,0.00017053,2]
[367391944,1750780240457,-500.0,0.00017053,2]
[367391946,1750780240467,-500.0,0.00017053,2]
[367391948,1750780240476,-500.0,0.00017053,2]
[367391950,1750780240485,-500.0,0.00017053,2]
[367391952,1750780240494,-500.0,0.00017053,2]
[367391954,1750780240503,-500.0,0.00017053,2]
[367391956,1750780240512,-500.0,0.00017053,2]
[367391958,1750780240521,-500.0,0.00017053,2]
[367391960,1750780240531,-500.0,0.00017053,2]
[367391962,1750780240541,-500.0,0.00017053,2]
[367391964,1750780240550,-500.0,0.00017053,2]
[367391966,1750780240560,-500.0,0.00017053,2]
[367391968,1750780240569,-500.0,0.00017053,2]
[367391970,1750780240579,-343.99933918,0.00017053,2]
[367391972,1750780240588,-500.0,0.00017053,2]
[367391974,1750780240597,-500.0,0.00017053,2]
[367391976,1750780240607,-500.0,0.00017053,2]
[367391978,1750780240616,-500.0,0.00017053,2]
[367391981,1750780240626,-500.0,0.00017053,2]
[367391983,1750780240635,-500.0,0.00017053,2]
[367391985,1750780240645,-500.0,0.00017053,2]
[367391987,1750780240654,-500.0,0.00017053,2]
[367391989,1750780240663,-500.0,0.00017053,2]
[367391991,1750780240672,-500.0,0.00017053,2]
[367391993,1750780240682,-500.0,0.00017053,2]
[367391995,1750780240691,-500.0,0.00017053,2]
[367391997,1750780240702,-500.0,0.00017053,2]
[367391998,1750780240712,-500.0,0.00017053,2]
[367392000,1750780240721,-500.0,0.00017053,2]
[367392002,1750780240731,-500.0,0.00017053,2]
[367392004,1750780240740,-500.0,0.00017053,2]
[367392006,1750780240750,-500.0,0.00017053,2]
[367392008,1750780240764,-500.0,0.00017053,2]
[367392010,1750780240773,-500.0,0.00017053,2]
[367392012,1750780240783,-500.0,0.00017053,2]
[367392014,1750780240792,-500.0,0.00017053,2]
[367392016,1750780240802,-500.0,0.00017053,2]
[367392018,1750780240811,-500.0,0.00017053,2]
[367392019,1750780240820,-500.0,0.00017053,2]
[367392020,1750780240830,-505.76,0.00017125,2]
[367392021,1750780240841,-1672.54983663,0.00017153,2]
[367392022,1750780240851,-1672.54983663,0.00017153,2]
[367392023,1750780240860,-1427.67270891,0.00017153,2]
[367392024,1750780240922,-500.0,0.00017053,2]
[367392025,1750780240932,-500.0,0.00017053,2]
[367392026,1750780240940,-500.0,0.00017053,2]
[367392027,1750780240951,-500.0,0.00017053,2]
[367392028,1750780240961,-500.0,0.00017053,2]
[367392029,1750780240970,-500.0,0.00017053,2]
[367392030,1750780240979,-500.0,0.00017053,2]
[367392031,1750780240988,-244.87712772,0.00017153,2]
[367392032,1750780240997,-68.45092694,0.00017153,2]
[367392040,1750780241226,-500.0,0.00017053,2]
[367392042,1750780241235,-500.0,0.00017053,2]
[367392044,1750780241245,-500.0,0.00017053,2]
[367392046,1750780241254,-562.83062523,0.00017053,2]
[367392048,1750780241263,-500.0,0.00017053,2]
[367392050,1750780241273,-500.0,0.00017053,2]
[367392052,1750780241283,-500.0,0.00017053,2]
[367392054,1750780241291,-500.0,0.00017053,2]
[367392056,1750780241301,-460.0,0.00017125,2]
[367392058,1750780241310,-1604.09890969,0.00017153,2]
[367392060,1750780241319,-1672.54983663,0.00017153,2]
[367392062,1750780241328,-1672.54983663,0.00017153,2]
[367392064,1750780241338,-1672.54983663,0.00017153,2]
[367392066,1750780241347,-1672.54983663,0.00017153,2]
[367392068,1750780241357,-1672.54983663,0.00017153,2]
[367392070,1750780241366,-1672.54983663,0.00017153,2]
[367392071,1750780241374,-1672.54983663,0.00017153,2]
[367392072,1750780241383,-1672.54983663,0.00017153,2]
[367392073,1750780241392,-1672.54983663,0.00017153,2]
[367392074,1750780241401,-1672.54983663,0.00017153,2]
[367392075,1750780241411,-460.0,0.00017154,2]
[367392076,1750780241419,-460.0,0.00017154,2]
[367392077,1750780241428,-5633.83,0.00017154,2]
[367392078,1750780241437,-1049.7,0.00017154,2]
[367392079,1750780241446,-460.0,0.00017154,2]
[367392080,1750780241456,-460.0,0.00017154,2]
[367392081,1750780241465,-460.0,0.00017154,2]
[367392082,1750780241474,-460.0,0.00017154,2]
[367392083,1750780241483,-460.0,0.00017154,2]
[367392084,1750780241491,-460.0,0.00017154,2]
[367392085,1750780241500,-460.0,0.00017154,2]
[367392086,1750780241510,-460.0,0.00017154,2]
[367392087,1750780241519,-7374.58276345,0.00017197,2]
[367392088,1750780241528,-764.71668097,0.00017197,2]
[367392089,1750780241537,-224.29831627,0.00017197,2]
[367392090,1750780241546,-164.820112,0.00017228,2]
[367392091,1750780241555,-164.820112,0.00017245,2]
[367392092,1750780241564,-440.0,0.00017256,2]
[367392093,1750780241573,-400.0,0.00017256,2]
[367392094,1750780241582,-598.11818311,0.00017256,2]
[367392095,1750780241591,-460.0,0.00017256,2]
[367392097,1750780241600,-460.0,0.00017256,2]
[367392099,1750780241609,-460.0,0.00017256,2]
[367392101,1750780241619,-472.27569026,0.00017256,2]
[367392103,1750780241628,-460.0,0.00017256,2]
[367392105,1750780241637,-460.0,0.00017256,2]
[367392107,1750780241646,-460.0,0.00017256,2]
[367392109,1750780241655,-460.0,0.00017256,2]
[367392111,1750780241664,-460.0,0.00017256,2]
[367392113,1750780241673,-460.0,0.00017256,2]
[367392114,1750780241682,-460.0,0.00017256,2]
[367392116,1750780241691,-460.0,0.00017256,2]
[367392118,1750780241700,-460.0,0.00017256,2]
[367392120,1750780241711,-460.0,0.00017256,2]
[367392122,1750780241720,-438.44406665,0.00017256,2]
[367392124,1750780241730,-460.0,0.00017256,2]
[367392126,1750780241739,-460.0,0.00017256,2]
[367392128,1750780241748,-460.0,0.00017256,2]
[367392130,1750780241759,-24900.0,0.00017257,2]
[367392132,1750780241770,-164.820112,0.00017262,2]
[367392134,1750780241779,-902.37,0.00017277,3]
[367392136,1750780241788,-451.19,0.00017277,3]
[367392138,1750780241798,-225.59,0.00017277,3]
[367392140,1750780241807,-676.81,0.00017277,3]
[367392142,1750780241817,-153.49897156,0.00017277,2]
[367392144,1750780241827,-164.820112,0.0001728,2]
[367392146,1750780241837,-103256.72110504,0.00017288,2]
[367392148,1750780241846,-164.820112,0.00017297,2]
[367392150,1750780241855,-164.820112,0.00017314,2]
[367392152,1750780241864,-5000.0,0.00017343,2]
[367392154,1750780241873,-505.76,0.00017399,2]
[367392156,1750780241883,-460.0,0.00017399,2]
[367392158,1750780241892,-460.0,0.00017428,2]
[367392160,1750780241902,-460.0,0.00017428,2]
[367392161,1750780241911,-460.0,0.00017428,2]
[367392163,1750780241921,-5633.83,0.00017428,2]
[367392165,1750780241930,-1049.7,0.00017428,2]
[367392167,1750780241940,-460.0,0.00017428,2]
[367392169,1750780241949,-460.0,0.00017428,2]
[367392171,1750780241960,-392.50022847,0.00017428,2]
[367392173,1750780241969,-460.0,0.0001753,2]
[367392174,1750780241978,-460.0,0.0001753,2]
[367392176,1750780241987,-460.0,0.0001753,2]
[367392178,1750780241997,-460.0,0.0001753,2]
[367392180,1750780242006,-460.0,0.0001753,2]
[367392182,1750780242016,-460.0,0.0001753,2]
[367392184,1750780242026,-505.76,0.00017673,2]
[367392186,1750780242035,-460.0,0.00017673,2]
[367392188,1750780242045,-7374.58276341,0.00017689,2]
[367392190,1750780242055,-460.0,0.00017702,2]
[367392192,1750780242064,-460.0,0.00017702,2]
[367392194,1750780242074,-460.0,0.00017702,2]
[367392196,1750780242083,-5633.83,0.00017702,2]
[367392198,1750780242092,-1049.7,0.00017702,2]
[367392200,1750780242102,-460.0,0.00017702,2]
[367392202,1750780242111,-460.0,0.00017702,2]
[367392204,1750780242120,-4379.12625232,0.00017746,2]
[367392206,1750780242129,-420.0,0.00017776,2]
[367392208,1750780242137,-420.0,0.00017776,2]
[367392210,1750780242146,-460.0,0.00017804,2]
[367392211,1750780242155,-460.0,0.00017804,2]
[367392213,1750780242164,-460.0,0.00017804,2]
[367392215,1750780242173,-1680.0,0.00017865,2]
[367392217,1750780242183,-505.76,0.00017947,2]
[367392219,1750780242193,-447.01251176,0.00017947,2]
[367392221,1750780242202,-800.0,0.00017972,2]
[367392222,1750780242213,-460.0,0.00017976,2]
[367392223,1750780242222,-460.0,0.00017976,2]
[367392224,1750780242232,-460.0,0.00017976,2]
[367392225,1750780242241,-5633.83,0.00017976,2]
[367392226,1750780242250,-1049.7,0.00017976,2]
[367392227,1750780242260,-460.0,0.00017976,2]
[367392228,1750780242270,-201.57223528,0.00018032,2]
[367392229,1750780242279,-214.54309517,0.00018032,2]
[367392230,1750780242288,-603.5430403,0.00018032,2]
[367392231,1750780242297,-460.0,0.00018078,2]
[367392232,1750780242307,-460.0,0.00018078,2]
[367392233,1750780242316,-204.23616846,0.00018082,3]
[367392234,1750780242325,-460.0,0.00018097,2]
[367392236,1750780242334,-460.0,0.00018097,2]
[367392237,1750780242343,-460.0,0.00018097,2]
[367392238,1750780242353,-571.55046429,0.00018097,2]
[367392239,1750780242362,-460.0,0.00018097,2]
[367392240,1750780242372,-460.0,0.00018097,2]
[367392242,1750780242380,-460.0,0.00018097,2]
[367392244,1750780242389,-164.1306636,0.00018097,2]
[367392245,1750780242399,-152.4872318,0.00018097,2]
[367392246,1750780242408,-3173.84,0.00018097,2]
[367392248,1750780242417,-3912.23,0.00018097,2]
[367392249,1750780242427,-1174.47,0.00018097,2]
[367392250,1750780242436,-460.0,0.00018097,2]
[367392251,1750780242446,-460.0,0.00018097,2]
[367392252,1750780242457,-635.98,0.00018097,2]
[367392254,1750780242466,-460.0,0.00018097,2]
[367392256,1750780242476,-2537.67,0.00018097,2]
[367392257,1750780242485,-460.0,0.00018097,2]
[367392258,1750780242495,-2978.96,0.00018097,2]
[367392259,1750780242504,-3648.74,0.00018097,2]
[367392260,1750780242514,-513.6,0.00018097,2]
[367392261,1750780242523,-460.0,0.00018097,2]
[367392262,1750780242533,-2016.14,0.00018097,2]
[367392263,1750780242542,-460.0,0.00018097,2]
[367392264,1750780242551,-1031.41,0.00018097,2]
[367392265,1750780242560,-1131.68,0.00018097,2]
[367392266,1750780242570,-277.66323133,0.000181,2]
[367392267,1750780242579,-168.0,0.00018132,2]
[367392268,1750780242722,-265.0,0.00018153,2]
[367392269,1750780242732,-500.0,0.0001816,2]
[367392270,1750780242742,-7374.58276341,0.00018182,2]
[367392271,1750780242752,-505.76,0.00018221,2]
[367392272,1750780242765,-460.0,0.0001825,2]
[367392273,1750780242774,-460.0,0.0001825,2]
[367392274,1750780242784,-460.0,0.0001825,2]
[367392275,1750780242795,-5633.83,0.0001825,2]
[367392276,1750780242805,-1049.7,0.0001825,2]
[367392277,1750780242815,-460.0,0.0001825,2]
[367392278,1750780242824,-151.0,0.000183,2]
[367392279,1750780242833,-596.0,0.00018306,2]
[367392280,1750780242844,-470.41250401,0.00018348,2]
[367392281,1750780242853,-348.46845455,0.00018348,2]
[367392282,1750780242862,-460.0,0.00018348,2]
[367392283,1750780242871,-460.0,0.00018348,2]
[367392284,1750780242880,-460.0,0.00018348,2]
[367392285,1750780242889,-460.0,0.00018348,2]
[367392286,1750780242898,-460.0,0.00018348,2]
[367392287,1750780242908,-460.0,0.00018348,2]
[367392288,1750780242916,-460.0,0.00018348,2]
[367392289,1750780242925,-460.0,0.00018348,2]
[367392290,1750780242935,-460.0,0.00018348,2]
[367392291,1750780242945,-460.0,0.00018348,2]
[367392292,1750780242955,-460.0,0.00018348,2]
[367392293,1750780242963,-460.0,0.00018348,2]
[367392294,1750780242973,-460.0,0.00018348,2]
[367392296,1750780242982,-460.0,0.00018348,2]
[367392298,1750780242991,-460.0,0.00018348,2]
[367392299,1750780243001,-553.19,0.00018348,2]
[367392300,1750780243010,-460.0,0.00018348,2]
[367392302,1750780243019,-460.0,0.00018348,2]
[367392304,1750780243028,-460.0,0.00018348,2]
[367392306,1750780243037,-460.0,0.00018348,2]
[367392308,1750780243047,-460.0,0.00018348,2]
[367392309,1750780243056,-460.0,0.00018348,2]
[367392310,1750780243065,-460.0,0.00018348,2]
[367392311,1750780243074,-1134.44,0.00018348,2]
[367392312,1750780243083,-721.26,0.00018348,2]
[367392313,1750780243092,-500.0,0.00018348,2]
[367392314,1750780243102,-587.87,0.00018348,2]
[367392315,1750780243111,-460.0,0.00018348,2]
[367392316,1750780243120,-500.0,0.00018348,2]
[367392317,1750780243129,-460.0,0.00018348,2]
[367392318,1750780243138,-460.0,0.00018348,2]
[367392319,1750780243148,-1187.37,0.00018348,2]
[367392320,1750780243157,-964.11,0.00018348,2]
[367392321,1750780243166,-3551.62,0.00018348,2]
[367392322,1750780243175,-460.0,0.00018348,2]
[367392323,1750780243185,-460.0,0.00018348,2]
[367392324,1750780243194,-460.0,0.00018348,2]
[367392325,1750780243203,-460.0,0.00018348,2]
[367392326,1750780243213,-432.56802118,0.00018348,2]
[367392327,1750780243222,-460.0,0.00018348,2]
[367392328,1750780243232,-460.0,0.00018348,2]
[367392329,1750780243241,-460.0,0.00018348,2]
[367392330,1750780243251,-460.0,0.00018348,2]
[367392331,1750780243260,-460.0,0.00018348,2]
[367392332,1750780243269,-925.08,0.00018348,2]
[367392333,1750780243279,-460.0,0.00018348,2]
[367392334,1750780243288,-350.1768881,0.00018348,2]
[367392335,1750780243298,-460.0,0.00018348,2]
[367392336,1750780243308,-656.71,0.00018348,2]
[367392337,1750780243317,-460.0,0.00018348,2]
[367392338,1750780243327,-460.0,0.00018348,2]
[367392339,1750780243336,-460.0,0.00018348,2]
[367392340,1750780243346,-460.0,0.00018348,2]
[367392341,1750780243355,-460.0,0.00018348,2]
[367392342,1750780243365,-2176.59,0.00018348,2]
[367392343,1750780243374,-460.0,0.00018348,2]
[367392344,1750780243383,-460.0,0.00018348,2]
[367392345,1750780243392,-460.0,0.00018348,2]
[367392346,1750780243402,-291.26230414,0.00018348,2]
[367392347,1750780243412,-460.0,0.00018348,2]
[367392348,1750780243421,-1079.09,0.00018348,2]
[367392349,1750780243430,-460.0,0.00018348,2]
[367392350,1750780243440,-460.0,0.00018348,2]
[367392351,1750780243449,-1083.01,0.00018348,2]
[367392352,1750780243459,-460.0,0.00018348,2]
[367392353,1750780243468,-460.0,0.00018348,2]
[367392354,1750780243478,-460.0,0.00018348,2]
[367392355,1750780243488,-500.0,0.00018348,2]
[367392356,1750780243498,-460.0,0.00018348,2]
[367392357,1750780243507,-460.0,0.00018348,2]
[367392358,1750780243517,-460.0,0.00018348,2]
[367392359,1750780243526,-863.53,0.00018348,2]
[367392360,1750780243536,-460.0,0.00018348,2]
[367392361,1750780243546,-460.0,0.00018348,2]
[367392362,1750780243555,-460.0,0.00018348,2]
[367392363,1750780243564,-460.0,0.00018348,2]
[367392364,1750780243573,-821.07,0.00018348,2]
[367392365,1750780243583,-734.85,0.00018348,2]
[367392366,1750780243593,-320.0,0.00018349,2]
[367392367,1750780243602,-404.20640939,0.00018349,2]
[367392368,1750780243611,-460.0,0.00018349,2]
[367392369,1750780243620,-430.0,0.00018349,2]
[367392370,1750780243630,-460.0,0.00018349,2]
[367392371,1750780243639,-430.0,0.00018349,2]
[367392372,1750780243648,-434.31898164,0.00018349,2]
[367392373,1750780243657,-460.0,0.00018349,2]
[367392374,1750780243667,-460.0,0.00018349,2]
[367392375,1750780243676,-430.0,0.00018349,2]
[367392376,1750780243686,-434.67464137,0.00018349,2]
[367392377,1750780243695,-434.3900369,0.00018349,2]
[367392378,1750780243705,-460.0,0.00018349,2]
[367392379,1750780243716,-460.0,0.00018349,2]
[367392380,1750780243726,-500.0,0.00018349,2]
[367392381,1750780243735,-501.14805584,0.00018349,2]
[367392382,1750780243745,-460.0,0.00018349,2]
[367392383,1750780243754,-943.71,0.00018349,2]
[367392384,1750780243768,-1141.58,0.00018349,2]
[367392385,1750780243777,-538.77,0.00018349,2]
[367392386,1750780243786,-517.98,0.00018349,2]
[367392387,1750780243796,-1585.31,0.00018349,2]
[367392388,1750780243806,-1455.9,0.00018349,2]
[367392389,1750780243816,-460.0,0.00018349,2]
[367392390,1750780243825,-460.0,0.00018349,2]
[367392391,1750780243835,-460.0,0.00018349,2]
[367392392,1750780243845,-1245.31,0.00018349,2]
[367392393,1750780243854,-460.0,0.00018349,2]
[367392394,1750780243864,-460.0,0.00018349,2]
[367392395,1750780243873,-314.0112004,0.00018349,2]
[367392396,1750780243883,-494.71,0.00018349,2]
[367392397,1750780243892,-460.0,0.00018349,2]
[367392398,1750780243902,-460.0,0.00018349,2]
[367392399,1750780243912,-999.70008997,0.0001835,2]
[367392400,1750780243921,-460.0,0.0001835,2]
[367392401,1750780243930,-537.79,0.0001835,2]
[367392402,1750780243940,-460.0,0.0001835,2]
[367392403,1750780243949,-291.52918945,0.0001835,2]
[367392405,1750780243960,-460.0,0.0001835,2]
[367392407,1750780243969,-460.0,0.0001835,2]
[367392409,1750780243979,-460.0,0.0001835,2]
[367392411,1750780243988,-460.0,0.0001835,2]
[367392413,1750780243997,-460.0,0.0001835,2]
[367392415,1750780244006,-460.0,0.0001835,2]
[367392417,1750780244016,-460.0,0.0001835,2]
[367392419,1750780244025,-460.0,0.0001835,2]
[367392421,1750780244035,-358.00059963,0.0001835,2]
[367392423,1750780244044,-460.0,0.0001835,2]
[367392425,1750780244053,-460.0,0.0001835,2]
[367392426,1750780244063,-599.98,0.0001835,2]
[367392428,1750780244072,-460.0,0.0001835,2]
[367392430,1750780244082,-460.0,0.0001835,2]
[367392432,1750780244091,-816.3,0.0001835,2]
[367392433,1750780244100,-460.0,0.0001835,2]
[367392434,1750780244110,-460.0,0.0001835,2]
[367392436,1750780244119,-460.0,0.0001835,2]
[367392438,1750780244128,-579.46942841,0.0001835,2]
[367392440,1750780244137,-859.88,0.0001835,2]
[367392442,1750780244146,-460.0,0.0001835,2]
[367392444,1750780244157,-460.0,0.0001835,2]
[367392446,1750780244167,-460.0,0.0001835,2]
[367392448,1750780244178,-1874.52,0.0001835,2]
[367392450,1750780244188,-460.0,0.0001835,2]
[367392452,1750780244197,-431.07505449,0.0001835,2]
[367392454,1750780244207,-460.0,0.0001835,2]
[367392457,1750780244219,-460.0,0.0001835,2]
[367392458,1750780244228,-208.62,0.0001835,2]
[367392460,1750780244237,-460.0,0.0001835,2]
[367392462,1750780244247,-460.0,0.0001835,2]
[367392465,1750780244256,-2701.41,0.0001835,2]
[367392467,1750780244266,-460.0,0.0001835,2]
[367392469,1750780244275,-460.0,0.0001835,2]
[367392471,1750780244284,-591.62967957,0.0001835,2]
[367392473,1750780244292,-500.0,0.0001835,2]
[367392474,1750780244302,-1019.62,0.0001835,2]
[367392476,1750780244311,-460.0,0.0001835,2]
[367392478,1750780244320,-460.0,0.0001835,2]
[367392480,1750780244329,-460.0,0.0001835,2]
[367392482,1750780244338,-460.0,0.0001835,2]
[367392484,1750780244347,-327.85464959,0.0001835,2]
[367392486,1750780244357,-2450.31,0.0001835,2]
[367392488,1750780244366,-241.13834208,0.0001835,2]
[367392490,1750780244376,-581.52,0.0001835,2]
[367392492,1750780244385,-460.0,0.0001835,2]
[367392494,1750780244394,-460.0,0.0001835,2]
[367392496,1750780244403,-460.0,0.0001835,2]
[367392498,1750780244412,-460.0,0.0001835,2]
[367392500,1750780244421,-4242.73,0.0001835,2]
[367392502,1750780244430,-460.0,0.0001835,2]
[367392504,1750780244439,-460.0,0.0001835,2]
[367392506,1750780244448,-846.44,0.0001835,2]
[367392508,1750780244458,-460.0,0.0001835,2]
[367392510,1750780244467,-460.0,0.0001835,2]
[367392512,1750780244476,-2574.07,0.0001835,2]
[367392514,1750780244485,-460.0,0.0001835,2]
[367392516,1750780244495,-460.0,0.0001835,2]
[367392518,1750780244504,-460.0,0.0001835,2]
[367392520,1750780244513,-460.0,0.0001835,2]
[367392522,1750780244522,-460.0,0.0001835,2]
[367392524,1750780244531,-460.0,0.0001835,2]
[367392526,1750780244540,-460.0,0.0001835,2]
[367392528,1750780244548,-634.5,0.0001835,2]
[367392530,1750780244558,-460.0,0.0001835,2]
[367392532,1750780244567,-460.0,0.0001835,2]
[367392534,1750780244577,-1374.21,0.00018351,2]
[367392536,1750780244586,-460.0,0.00018351,2]
[367392538,1750780244595,-698.41,0.00018351,2]
[367392540,1750780244605,-2025.67,0.00018351,2]
[367392542,1750780244614,-460.0,0.00018351,2]
[367392544,1750780244623,-1665.65,0.00018351,2]
[367392546,1750780244633,-460.0,0.00018351,2]
[367392548,1750780244642,-460.0,0.00018352,2]
[367392550,1750780244650,-460.0,0.00018352,2]
[367392552,1750780244659,-500.0,0.00018353,2]
[367392554,1750780244669,-7656.19,0.00018353,2]
[367392556,1750780244678,-1260.31,0.00018353,2]
[367392558,1750780244688,-380.0,0.00018354,2]
[367392560,1750780244698,-500.0,0.00018356,2]
[367392562,1750780244707,-429.50860139,0.00018357,2]
[367392563,1750780244717,-228.7661709,0.00018357,2]
[367392565,1750780244726,-402.82503396,0.00018357,2]
[367392567,1750780244737,-441.22791932,0.00018357,2]
[367392569,1750780244746,-461.76540482,0.00018357,2]
[367392571,1750780244756,-353.36371504,0.00018357,2]
[367392573,1750780244769,-400.0,0.00018357,2]
[367392575,1750780244778,-441.53770433,0.00018357,2]
[367392578,1750780244788,-570.0,0.00018357,2]
[367392579,1750780244797,-460.0,0.00018357,2]
[367392581,1750780244807,-461.44243484,0.00018357,2]
[367392583,1750780244816,-460.0,0.00018357,2]
[367392585,1750780244825,-460.0,0.00018357,2]
[367392588,1750780244836,-460.0,0.00018357,2]
[367392589,1750780244845,-460.0,0.00018357,2]
[367392591,1750780244856,-460.0,0.00018357,2]
[367392593,1750780244865,-460.0,0.00018357,2]
[367392595,1750780244874,-460.0,0.00018357,2]
[367392597,1750780244884,-460.0,0.00018357,2]
[367392600,1750780244893,-1482.42,0.00018357,2]
[367392601,1750780244902,-460.0,0.00018357,2]
[367392603,1750780244911,-460.0,0.00018357,2]
[367392605,1750780244921,-460.0,0.00018357,2]
[367392607,1750780244930,-460.0,0.00018357,2]
[367392609,1750780244939,-460.0,0.00018357,2]
[367392611,1750780244948,-460.0,0.00018357,2]
[367392613,1750780244958,-1000.0,0.00018357,2]
[367392615,1750780244967,-460.0,0.00018357,2]
[367392617,1750780244977,-460.0,0.00018357,2]
[367392619,1750780244986,-460.0,0.00018357,2]
[367392621,1750780244995,-460.0,0.00018357,2]
[367392623,1750780245005,-460.0,0.00018357,2]
[367392625,1750780245015,-460.0,0.00018357,2]
[367392627,1750780245024,-460.0,0.00018357,2]
[367392629,1750780245033,-460.0,0.00018359,2]
[367392631,1750780245044,-460.0,0.00018359,2]
[367392633,1750780245053,-517.4,0.00018359,2]
[367392635,1750780245062,-460.0,0.00018359,2]
[367392637,1750780245070,-460.0,0.00018359,2]
[367392639,1750780245079,-460.0,0.00018359,2]
[367392641,1750780245088,-460.0,0.00018359,2]
[367392643,1750780245097,-460.0,0.00018359,2]
[367392645,1750780245107,-460.0,0.00018359,2]
[367392647,1750780245116,-460.0,0.00018359,2]
[367392649,1750780245125,-569.57,0.00018359,2]
[367392651,1750780245134,-1000.0,0.00018359,2]
[367392653,1750780245143,-462.21548455,0.00018359,2]
[367392655,1750780245152,-460.0,0.00018359,2]
[367392657,1750780245161,-460.0,0.00018359,2]
[367392659,1750780245170,-252.83999872,0.00018359,2]
[367392661,1750780245180,-460.0,0.00018359,2]
[367392663,1750780245189,-460.0,0.00018359,2]
[367392665,1750780245199,-460.0,0.0001836,2]
[367392667,1750780245208,-460.0,0.0001836,2]
[367392669,1750780245218,-460.0,0.0001836,2]
[367392671,1750780245228,-460.0,0.0001836,2]
[367392673,1750780245238,-460.0,0.0001836,2]
[367392675,1750780245248,-460.0,0.0001836,2]
[367392677,1750780245256,-460.0,0.0001836,2]
[367392679,1750780245266,-460.0,0.0001836,2]
[367392681,1750780245276,-460.0,0.0001836,2]
[367392683,1750780245285,-460.0,0.0001836,2]
[367392685,1750780245294,-460.0,0.0001836,2]
[367392687,1750780245304,-460.0,0.00018371,2]
[367392689,1750780245313,-1134.98800129,0.00018371,2]
[367392692,1750780245334,-2038.85199871,0.00018371,2]
[367392694,1750780245343,-3912.23,0.00018371,2]